[Event "55th Biel Festival MTO 2022"]
[Site "Biel"]
[Date "2022.07.15"]
[Round "3.13"]
[White "Erdos Viktor"]
[Black "Katz, Alexander"]
[Result "1-0"]
[ECO "B10"]
[WhiteElo "2586"]
[BlackElo "2402"]
[Annotator "ChessBase"]
[PlyCount "61"]
[EventDate "2022.07.13"]
[EventType "swiss"]
[EventCountry "SUI"]
[SourceTitle "playchess.com"]
[Source "ChessBase"]
[SourceQuality "1"]
[TimeControl "40/5400+30:1800+30"]

1. e4 {[%emt 0:04:45]} c6 {[%emt 0:00:05]} 2. c4 {[%emt 0:04:46]} d5 {[%emt 0:00:37]} 3. cxd5 {[%emt 0:00:14]} cxd5 {[%emt 0:00:03]} 4. exd5 {[%emt 0:00:08]} Nf6 {[%emt 0:00:18]} 5. Bb5+ {[%emt 0:08:46]} Bd7 {[%emt 0:00:53]} 6. Bc4 {[%emt 0:01:07]} Qc7 {[%emt 0:13:38]} 7. d3 {[%emt 0:03:59]} b5 {[%emt 0:02:49]} 8. Bb3 {[%emt 0:00:23]} Na6 {[%emt 0:00:08]} 9. Ne2 {[%emt 0:08:31]} Qb7 {[%emt 0:04:27]} 10. Nbc3 {[%emt 0:02:32]} b4 {[%emt 0:02:09]} 11. Ne4 {[%emt 0:00:06]} Nxd5 {[%emt 0:00:55]} 12. Nf4 {[%emt 0:00:06]} e6 {[%emt 0:13:38]} 13. Qh5 {[%emt 0:32:52]} Nac7 {[%emt 0:01:25]} 14. O-O {[%emt 0:09:51]} Be7 {[%emt 0:02:58]} 15. Ng5 {[%emt 0:04:46]} g6 {[%emt 0:02:38]} 16. Qh6 {[%emt 0:00:05]} Bf8 {[%emt 0:03:48]} 17. Qh4 {[%emt 0:00:07]} h6 {[%emt 0:01:57]} 18. Nxd5 {[%emt 0:03:27]} Nxd5 {[%emt 0:00:42]} 19. Qd4 {[%emt 0:00:53]} Rg8 {[%emt 0:01:54]} 20. Ne4 {[%emt 0:01:24]} Be7 {[%emt 0:11:30]} 21. Bxh6 {[%emt 0:00:34]} Bc6 {[%emt 0:05:53]} 22. Rac1 {[%emt 0:02:34]} Rd8 {[%emt 0:04:04]} 23. Qe5 {[%emt 0:00:27]} Nb6 {[%emt 0:07:46]} 24. Bg5 {[%emt 0:05:24]} Bxg5 {[%emt 0:07:41]} 25. Nxg5 {[%emt 0:00:18]} Nd7 {[%emt 0:06:15]} 26. Qf4 {[%emt 0:00:45]} Rf8 {[%emt 0:00:08]} 27. Rfe1 {[%emt 0:00:21]} Bd5 {[%emt 0:01:29]} 28. Rc7 {[%emt 0:00:23]} Qb5 {[%emt 0:00:08]} 29. Bxd5 {[%emt 0:02:03]} Qxd5 {[%emt 0:00:06]} 30. Nh7 {[%emt 0:00:11]} g5 {[%emt 0:01:30]} 31. Qxb4 {[%emt 0:00:22]} 1-0

[Event "55th Biel Festival MTO 2022"]
[Site "Biel"]
[Date "2022.07.15"]
[Round "3.14"]
[White "Haimovich, Tal"]
[Black "Mendonca Leon Luke"]
[Result "0-1"]
[ECO "D43"]
[WhiteElo "2372"]
[BlackElo "2567"]
[Annotator "ChessBase"]
[PlyCount "126"]
[EventDate "2022.07.13"]
[EventType "swiss"]
[EventCountry "SUI"]
[SourceTitle "playchess.com"]
[Source "ChessBase"]
[SourceQuality "1"]
[TimeControl "40/5400+30:1800+30"]

1. d4 {[%emt 0:00:04]} d5 {[%emt 0:01:11]} 2. c4 {[%emt 0:00:04]} e6 {[%emt 0:01:30]} 3. Nf3 {[%emt 0:02:08]} Nf6 {[%emt 0:00:13]} 4. Nc3 {[%emt 0:00:07]} c6 {[%emt 0:01:05]} 5. Bg5 {[%emt 0:00:06]} h6 {[%emt 0:00:15]} 6. Bxf6 {[%emt 0:00:07]} Qxf6 {[%emt 0:00:06]} 7. Qb3 {[%emt 0:00:21]} dxc4 {[%emt 0:02:24]} 8. Qxc4 {[%emt 0:00:09]} Nd7 {[%emt 0:00:47]} 9. e4 {[%emt 0:07:46]} e5 {[%emt 0:05:00]} 10. d5 {[%emt 0:01:55]} Nb6 {[%emt 0:02:38]} 11. Qb3 {[%emt 0:01:00]} Bc5 {[%emt 0:20:44]} 12. Be2 {[%emt 0:08:41]} O-O {[%emt 0:00:22]} 13. O-O {[%emt 0:00:43]} Bg4 {[%emt 0:04:54]} 14. a4 {[%emt 0:22:40]} a5 {[%emt 0:16:41]} 15. Rac1 {[%emt 0:04:12]} cxd5 {[%emt 0:17:15]} 16. exd5 {[%emt 0:09:43]} Bb4 {[%emt 0:03:18]} 17. Rfd1 {[%emt 0:09:16]} Rac8 {[%emt 0:08:40]} 18. h3 {[%emt 0:08:29]} Bh5 {[%emt 0:05:20]} 19. Kf1 {[%emt 0:11:31]} Rfd8 {[%emt 0:01:48]} 20. Ne4 {[%emt 0:03:12]} Qf4 {[%emt 0:01:56]} 21. Rxc8 {[%emt 0:00:07]} Rxc8 {[%emt 0:01:44]} 22. Ng3 {[%emt 0:03:46]} Bg6 {[%emt 0:00:34]} 23. Ne1 {[%emt 0:03:06]} Bc5 {[%emt 0:02:35]} 24. Qf3 {[%emt 0:01:41]} Nxa4 {[%emt 0:00:57]} 25. Nd3 {[%emt 0:01:26]} Bxd3 {[%emt 0:00:26]} 26. Rxd3 {[%emt 0:00:18]} Nxb2 {[%emt 0:00:35]} 27. Qxf4 {[%emt 0:00:44]} exf4 {[%emt 0:00:07]} 28. Rb3 {[%emt 0:00:01]} fxg3 {[%emt 0:00:14]} 29. Rxb2 {[%emt 0:00:33]} Bxf2 {[%emt 0:00:58]} 30. Bf3 {[%emt 0:00:27]} b6 {[%emt 0:00:34]} 31. d6 {[%emt 0:00:35]} Rd8 {[%emt 0:00:35]} 32. Rd2 {[%emt 0:00:19]} a4 {[%emt 0:00:31]} 33. d7 {[%emt 0:00:19]} a3 {[%emt 0:00:30]} 34. Bc6 {[%emt 0:00:20]} g6 {[%emt 0:00:31]} 35. Ke2 {[%emt 0:00:51]} Bc5 {[%emt 0:00:29]} 36. Kd3 {[%emt 0:00:23]} Kg7 {[%emt 0:00:31]} 37. Kc4 {[%emt 0:00:14]} f5 {[%emt 0:00:27]} 38. Re2 {[%emt 0:00:42]} Kf6 {[%emt 0:00:32]} 39. Kd5 {[%emt 0:00:52]} f4 {[%emt 0:00:27]} 40. Ke4 {[%emt 0:00:53]} g5 {[%emt 0:00:33]} 41. Kf3 {[%emt 0:02:12]} Be3 {[%emt 0:07:47]} 42. Ra2 {[%emt 0:01:22]} Bc1 {[%emt 0:04:17]} 43. Re2 {[%emt 0:00:33]} Bb2 {[%emt 0:02:27]} 44. Re8 {[%emt 0:02:16]} Rxd7 {[%emt 0:00:19]} 45. Bxd7 {[%emt 0:00:04]} a2 {[%emt 0:00:04]} 46. Ra8 {[%emt 0:00:05]} a1=Q {[%emt 0:00:05]} 47. Rxa1 {[%emt 0:00:08]} Bxa1 {[%emt 0:00:02]} 48. Ke4 {[%emt 0:03:51]} Ke7 {[%emt 0:01:22]} 49. Bg4 {[%emt 0:04:07]} Kd6 {[%emt 0:00:35]} 50. Kf5 {[%emt 0:09:53]} b5 {[%emt 0:00:58]} 51. h4 {[%emt 0:00:42]} gxh4 {[%emt 0:02:24]} 52. Kxf4 {[%emt 0:00:23]} b4 {[%emt 0:08:39]} 53. Ke3 {[%emt 0:03:49]} b3 {[%emt 0:00:47]} 54. Bd1 {[%emt 0:05:34]} Bd4+ {[%emt 0:01:02]} 55. Kf3 {[%emt 0:00:39]} b2 {[%emt 0:00:04]} 56. Bc2 {[%emt 0:00:03]} Kc5 {[%emt 0:00:33]} 57. Kg4 {[%emt 0:01:07]} Bf6 {[%emt 0:00:28]} 58. Kf3 {[%emt 0:00:43]} Kb4 {[%emt 0:00:41]} 59. Ke2 {[%emt 0:01:16]} Kc3 {[%emt 0:00:06]} 60. Be4 {[%emt 0:01:08]} Bd4 {[%emt 0:00:29]} 61. Kf3 {[%emt 0:00:41]} Kd2 {[%emt 0:00:05]} 62. Kg4 {[%emt 0:00:29]} Bf6 {[%emt 0:00:07]} 63. Kf3 {[%emt 0:00:32]} Kc1 {[%emt 0:00:06]} 0-1

[Event "55th Biel Festival MTO 2022"]
[Site "Biel"]
[Date "2022.07.15"]
[Round "3.15"]
[White "Azarov Sergei"]
[Black "Song, Julien"]
[Result "1-0"]
[ECO "C43"]
[WhiteElo "2566"]
[BlackElo "2391"]
[Annotator "ChessBase"]
[PlyCount "109"]
[EventDate "2022.07.13"]
[EventType "swiss"]
[EventCountry "SUI"]
[SourceTitle "playchess.com"]
[Source "ChessBase"]
[SourceQuality "1"]
[TimeControl "40/5400+30:1800+30"]

1. e4 {[%emt 0:00:05]} e5 {[%emt 0:00:04]} 2. Nf3 {[%emt 0:00:09]} Nf6 {[%emt 0:00:05]} 3. d4 {[%emt 0:00:29]} Nxe4 {[%emt 0:00:19]} 4. Bd3 {[%emt 0:00:20]} Nc6 {[%emt 0:00:22]} 5. O-O {[%emt 0:01:26]} d5 {[%emt 0:00:36]} 6. dxe5 {[%emt 0:01:00]} Bg4 {[%emt 0:00:13]} 7. Nc3 {[%emt 0:01:51]} Nxc3 {[%emt 0:00:26]} 8. bxc3 {[%emt 0:00:17]} Bc5 {[%emt 0:00:12]} 9. Re1 {[%emt 0:10:14]} O-O {[%emt 0:00:44]} 10. h3 {[%emt 0:04:29]} Bh5 {[%emt 0:00:42]} 11. Rb1 {[%emt 0:01:01]} f6 {[%emt 0:01:48]} 12. e6 {[%emt 0:08:58]} Qd6 {[%emt 0:00:54]} 13. Be3 {[%emt 0:03:26]} Bxe3 {[%emt 0:07:35]} 14. Rxe3 {[%emt 0:00:16]} b6 {[%emt 0:00:14]} 15. c4 {[%emt 0:28:38]} d4 {[%emt 0:08:36]} 16. Re1 {[%emt 0:00:12]} f5 {[%emt 0:12:55]} 17. Rb5 {[%emt 0:02:20]} Ne7 {[%emt 0:02:03]} 18. Rbe5 {[%emt 0:04:26]} c5 {[%emt 0:05:00]} 19. g4 {[%emt 0:03:42]} fxg4 {[%emt 0:36:21]} 20. Rxh5 {[%emt 0:01:17]} g6 {[%emt 0:00:25]} 21. Qd2 {[%emt 0:00:21]} Qf4 {[%emt 0:08:12]} 22. Qxf4 {[%emt 0:00:40]} Rxf4 {[%emt 0:00:03]} 23. Rh4 {[%emt 0:00:12]} Rxf3 {[%emt 0:02:37]} 24. Be4 {[%emt 0:00:08]} Raf8 {[%emt 0:00:32]} 25. Bxf3 {[%emt 0:00:12]} gxf3 {[%emt 0:01:39]} 26. Ree4 {[%emt 0:03:53]} Nf5 {[%emt 0:01:25]} 27. Rhf4 {[%emt 0:01:10]} Re8 {[%emt 0:00:18]} 28. Rxf3 {[%emt 0:03:32]} Re7 {[%emt 0:03:26]} 29. c3 {[%emt 0:02:25]} Kg7 {[%emt 0:00:10]} 30. a4 {[%emt 0:05:43]} dxc3 {[%emt 0:02:35]} 31. Rxc3 {[%emt 0:00:19]} Kf6 {[%emt 0:00:07]} 32. a5 {[%emt 0:03:06]} bxa5 {[%emt 0:00:30]} 33. Ra3 {[%emt 0:00:47]} Nd6 {[%emt 0:00:08]} 34. Re2 {[%emt 0:02:21]} Nxc4 {[%emt 0:01:28]} 35. Rf3+ {[%emt 0:01:10]} Kg7 {[%emt 0:00:07]} 36. Rc3 {[%emt 0:00:28]} Nb6 {[%emt 0:00:29]} 37. Rxc5 {[%emt 0:00:09]} a4 {[%emt 0:00:07]} 38. Rc3 {[%emt 0:04:06]} Nd5 {[%emt 0:02:29]} 39. Rf3 {[%emt 0:00:35]} a5 {[%emt 0:02:40]} 40. Rd2 {[%emt 0:02:33]} Nf6 {[%emt 0:01:04]} 41. Rd6 {[%emt 0:02:58]} g5 {[%emt 0:04:45]} 42. Rf5 {[%emt 0:04:02]} Kg6 {[%emt 0:05:33]} 43. Rxa5 {[%emt 0:00:10]} Nh5 {[%emt 0:00:55]} 44. h4 {[%emt 0:03:53]} gxh4 {[%emt 0:02:02]} 45. Rxa4 {[%emt 0:00:58]} Nf6 {[%emt 0:07:29]} 46. Rxh4 {[%emt 0:00:32]} h5 {[%emt 0:00:48]} 47. Ra4 {[%emt 0:00:42]} Ne8 {[%emt 0:00:53]} 48. Rc6 {[%emt 0:00:49]} Ng7 {[%emt 0:00:18]} 49. Re4 {[%emt 0:02:10]} Kf5 {[%emt 0:00:41]} 50. Re3 {[%emt 0:00:42]} Kf4 {[%emt 0:04:52]} 51. Kg2 {[%emt 0:04:12]} Kg4 {[%emt 0:04:39]} 52. Rc5 {[%emt 0:02:12]} Kf4 {[%emt 0:01:52]} 53. Rf3+ {[%emt 0:00:41]} Kg4 {[%emt 0:00:50]} 54. Rf7 {[%emt 0:00:54]} Nxe6 {[%emt 0:00:20]} 55. Rc4+ {[%emt 0:00:53]} 1-0

[Event "55th Biel Festival MTO 2022"]
[Site "Biel"]
[Date "2022.07.15"]
[Round "3.16"]
[White "Tanmay Chopra"]
[Black "Petrov Martin"]
[Result "1/2-1/2"]
[ECO "E52"]
[WhiteElo "2322"]
[BlackElo "2534"]
[Annotator "ChessBase"]
[PlyCount "48"]
[EventDate "2022.07.13"]
[EventType "swiss"]
[EventCountry "SUI"]
[SourceTitle "playchess.com"]
[Source "ChessBase"]
[SourceQuality "1"]
[TimeControl "40/5400+30:1800+30"]

1. d4 {[%emt 0:01:34]} Nf6 {[%emt 0:00:11]} 2. c4 {[%emt 0:00:07]} e6 {[%emt 0:00:07]} 3. Nc3 {[%emt 0:00:21]} Bb4 {[%emt 0:00:41]} 4. e3 {[%emt 0:00:30]} O-O {[%emt 0:00:19]} 5. Bd3 {[%emt 0:00:05]} d5 {[%emt 0:02:04]} 6. Nf3 {[%emt 0:01:03]} b6 {[%emt 0:01:52]} 7. O-O {[%emt 0:01:50]} Bb7 {[%emt 0:06:11]} 8. a3 {[%emt 0:02:02]} Bxc3 {[%emt 0:09:34]} 9. bxc3 {[%emt 0:00:09]} dxc4 {[%emt 0:00:06]} 10. Bxc4 {[%emt 0:00:06]} c5 {[%emt 0:00:03]} 11. Bd3 {[%emt 0:03:42]} Qc7 {[%emt 0:01:00]} 12. c4 {[%emt 0:00:51]} Nbd7 {[%emt 0:01:16]} 13. Bb2 {[%emt 0:00:14]} Rfd8 {[%emt 0:06:11]} 14. Nd2 {[%emt 0:05:39]} cxd4 {[%emt 0:02:55]} 15. exd4 {[%emt 0:00:06]} Nf8 {[%emt 0:13:48]} 16. Qe2 {[%emt 0:28:43]} Ng6 {[%emt 0:00:50]} 17. g3 {[%emt 0:00:07]} Rac8 {[%emt 0:05:59]} 18. Rae1 {[%emt 0:09:06]} a6 {[%emt 0:10:06]} 19. f3 {[%emt 0:10:55]} b5 {[%emt 0:03:38]} 20. cxb5 {[%emt 0:04:07]} axb5 {[%emt 0:00:06]} 21. Ne4 {[%emt 0:00:05]} Nd5 {[%emt 0:07:39]} 22. Bxb5 {[%emt 0:07:56]} Qb6 {[%emt 0:00:44]} 23. a4 {[%emt 0:04:43]} e5 {[%emt 0:07:55]} 24. Qf2 {[%emt 0:01:22]} f5 {[%emt 0:09:35]} 1/2-1/2

[Event "55th Biel Festival MTO 2022"]
[Site "Biel"]
[Date "2022.07.15"]
[Round "3.17"]
[White "Schlegel Igor"]
[Black "Muradli Mahammad"]
[Result "0-1"]
[ECO "B53"]
[WhiteElo "2194"]
[BlackElo "2523"]
[Annotator "ChessBase"]
[PlyCount "74"]
[EventDate "2022.07.13"]
[EventType "swiss"]
[EventCountry "SUI"]
[SourceTitle "playchess.com"]
[Source "ChessBase"]
[SourceQuality "1"]
[TimeControl "40/5400+30:1800+30"]

1. e4 {[%emt 0:00:03]} c5 {[%emt 0:03:24]} 2. Nf3 {[%emt 0:00:03]} d6 {[%emt 0:00:07]} 3. d4 {[%emt 0:00:04]} cxd4 {[%emt 0:00:08]} 4. Qxd4 {[%emt 0:00:07]} Nf6 {[%emt 0:00:15]} 5. Be2 {[%emt 0:00:05]} Nc6 {[%emt 0:00:08]} 6. Qe3 {[%emt 0:00:32]} Bg4 {[%emt 0:01:36]} 7. O-O {[%emt 0:00:00]} g6 {[%emt 0:01:55]} 8. Rd1 {[%emt 0:00:04]} Nd7 {[%emt 0:02:03]} 9. Qc3 {[%emt 0:21:44]} Bxf3 {[%emt 0:01:42]} 10. Bxf3 {[%emt 0:09:17]} Nce5 {[%emt 0:00:09]} 11. Be2 {[%emt 0:00:12]} Bg7 {[%emt 0:02:12]} 12. Qh3 {[%emt 0:12:20]} O-O {[%emt 0:01:01]} 13. Bh6 {[%emt 0:05:23]} Bxh6 {[%emt 0:03:50]} 14. Qxh6 {[%emt 0:00:06]} Qb6 {[%emt 0:00:04]} 15. b3 {[%emt 0:13:46]} Nf6 {[%emt 0:03:19]} 16. Qf4 {[%emt 0:03:29]} Qc6 {[%emt 0:00:10]} 17. Bd3 {[%emt 0:00:09]} Rac8 {[%emt 0:01:13]} 18. Re1 {[%emt 0:02:18]} Qb6 {[%emt 0:02:39]} 19. Na3 {[%emt 0:04:37]} Nfd7 {[%emt 0:03:58]} 20. Qd2 {[%emt 0:02:28]} Qc5 {[%emt 0:02:33]} 21. Nc4 {[%emt 0:01:58]} Nxc4 {[%emt 0:00:06]} 22. Bxc4 {[%emt 0:00:04]} Ne5 {[%emt 0:00:13]} 23. Bd3 {[%emt 0:00:29]} Qd4 {[%emt 0:01:18]} 24. Rad1 {[%emt 0:00:31]} Rc3 {[%emt 0:02:05]} 25. Qg5 {[%emt 0:00:53]} Rc7 {[%emt 0:04:08]} 26. Re3 {[%emt 0:04:31]} f6 {[%emt 0:03:33]} 27. Qh4 {[%emt 0:00:30]} Qb2 {[%emt 0:00:26]} 28. Qh3 {[%emt 0:07:37]} Qxa2 {[%emt 0:00:59]} 29. Qe6+ {[%emt 0:00:20]} Kg7 {[%emt 0:00:06]} 30. h4 {[%emt 0:04:16]} Qa5 {[%emt 0:02:08]} 31. Be2 {[%emt 0:01:20]} Nc6 {[%emt 0:06:07]} 32. Rd5 {[%emt 0:04:32]} Qa1+ {[%emt 0:02:01]} 33. Kh2 {[%emt 0:00:05]} Nb4 {[%emt 0:02:07]} 34. h5 {[%emt 0:00:25]} Nxd5 {[%emt 0:00:49]} 35. exd5 {[%emt 0:00:01]} f5 {[%emt 0:01:23]} 36. c3 {[%emt 0:00:39]} Rf6 {[%emt 0:00:15]} 37. h6+ {[%emt 0:00:05]} Kf8 {[%emt 0:00:05]} 0-1

[Event "55th Biel Festival MTO 2022"]
[Site "Biel"]
[Date "2022.07.15"]
[Round "3.18"]
[White "Rathanvel V S"]
[Black "Ajay Krishna, S."]
[Result "1/2-1/2"]
[ECO "B23"]
[WhiteElo "2478"]
[BlackElo "2372"]
[Annotator "ChessBase"]
[PlyCount "75"]
[EventDate "2022.07.13"]
[EventType "swiss"]
[EventCountry "SUI"]
[SourceTitle "playchess.com"]
[Source "ChessBase"]
[SourceQuality "1"]
[TimeControl "40/5400+30:1800+30"]

1. e4 {[%emt 0:00:09]} c5 {[%emt 0:00:07]} 2. Nc3 {[%emt 0:00:15]} Nc6 {[%emt 0:00:29]} 3. Nge2 {[%emt 0:00:22]} e5 {[%emt 0:01:53]} 4. Ng3 {[%emt 0:00:30]} d6 {[%emt 0:06:51]} 5. Bc4 {[%emt 0:00:28]} Nf6 {[%emt 0:03:34]} 6. O-O {[%emt 0:02:04]} Be7 {[%emt 0:01:32]} 7. d3 {[%emt 0:02:03]} O-O {[%emt 0:00:56]} 8. f4 {[%emt 0:07:37]} Bg4 {[%emt 0:10:51]} 9. Qe1 {[%emt 0:01:42]} exf4 {[%emt 0:05:13]} 10. Bxf4 {[%emt 0:00:03]} Be6 {[%emt 0:02:54]} 11. Bg5 {[%emt 0:44:50]} Nd4 {[%emt 0:10:40]} 12. Qd1 {[%emt 0:03:26]} Re8 {[%emt 0:09:20]} 13. Be3 {[%emt 0:22:41]} Rc8 {[%emt 0:11:57]} 14. Nd5 {[%emt 0:04:20]} Bxd5 {[%emt 0:10:51]} 15. Bxd5 {[%emt 0:00:08]} Nxd5 {[%emt 0:01:58]} 16. exd5 {[%emt 0:00:01]} Bh4 {[%emt 0:07:28]} 17. Bxd4 {[%emt 0:00:02]} cxd4 {[%emt 0:00:34]} 18. Nf5 {[%emt 0:02:18]} Bf6 {[%emt 0:00:31]} 19. Rf2 {[%emt 0:02:31]} Rc5 {[%emt 0:08:54]} 20. Qf3 {[%emt 0:01:38]} Re5 {[%emt 0:00:41]} 21. Nxd4 {[%emt 0:00:53]} Rcxd5 {[%emt 0:00:42]} 22. c3 {[%emt 0:00:22]} Qe7 {[%emt 0:01:09]} 23. Raf1 {[%emt 0:00:35]} Ra5 {[%emt 0:00:38]} 24. Qg4 {[%emt 0:00:35]} h5 {[%emt 0:00:30]} 25. Qc8+ {[%emt 0:00:08]} Kh7 {[%emt 0:00:24]} 26. b4 {[%emt 0:01:41]} Rad5 {[%emt 0:00:41]} 27. Nf3 {[%emt 0:01:19]} Re6 {[%emt 0:01:16]} 28. Qc4 {[%emt 0:01:02]} Rf5 {[%emt 0:00:24]} 29. d4 {[%emt 0:00:42]} Re3 {[%emt 0:00:47]} 30. Qc8 {[%emt 0:00:30]} g6 {[%emt 0:00:56]} 31. h4 {[%emt 0:00:22]} Kg7 {[%emt 0:00:42]} 32. Qc4 {[%emt 0:00:30]} b5 {[%emt 0:00:22]} 33. Qc6 {[%emt 0:00:14]} Bxh4 {[%emt 0:00:42]} 34. Nxh4 {[%emt 0:00:10]} Rxf2 {[%emt 0:00:01]} 35. Kxf2 {[%emt 0:00:27]} Re2+ {[%emt 0:00:26]} 36. Kg1 {[%emt 0:00:01]} Qxh4 {[%emt 0:00:15]} 37. Rxf7+ {[%emt 0:01:38]} Kxf7 {[%emt 0:00:56]} 38. Qf3+ {[%emt 0:00:02]} 1/2-1/2

[Event "55th Biel Festival MTO 2022"]
[Site "Biel"]
[Date "2022.07.15"]
[Round "3.19"]
[White "Pavlovic Milos"]
[Black "Papadiamandis, Elliot"]
[Result "1-0"]
[ECO "A22"]
[WhiteElo "2461"]
[BlackElo "2369"]
[Annotator "ChessBase"]
[PlyCount "191"]
[EventDate "2022.07.13"]
[EventType "swiss"]
[EventCountry "SUI"]
[SourceTitle "playchess.com"]
[Source "ChessBase"]
[SourceQuality "1"]
[TimeControl "40/5400+30:1800+30"]

1. c4 {[%emt 0:01:04]} e5 {[%emt 0:05:37]} 2. Nf3 {[%emt 0:03:14]} e4 {[%emt 0:02:38]} 3. Nd4 {[%emt 0:00:05]} Nf6 {[%emt 0:00:12]} 4. Nc3 {[%emt 0:00:14]} Nc6 {[%emt 0:01:09]} 5. Nc2 {[%emt 0:00:07]} Ne5 {[%emt 0:05:19]} 6. d3 {[%emt 0:09:12]} exd3 {[%emt 0:15:41]} 7. exd3 {[%emt 0:00:07]} Be7 {[%emt 0:05:25]} 8. d4 {[%emt 0:05:43]} Nc6 {[%emt 0:05:52]} 9. Bd3 {[%emt 0:10:00]} d5 {[%emt 0:10:11]} 10. cxd5 {[%emt 0:07:12]} Nxd5 {[%emt 0:04:09]} 11. O-O {[%emt 0:00:08]} Be6 {[%emt 0:05:35]} 12. Be4 {[%emt 0:03:33]} Qd7 {[%emt 0:04:56]} 13. Bxd5 {[%emt 0:02:47]} Bxd5 {[%emt 0:00:35]} 14. Ne3 {[%emt 0:00:07]} Bxg2 {[%emt 0:02:40]} 15. Kxg2 {[%emt 0:01:01]} Nxd4 {[%emt 0:00:06]} 16. Ned5 {[%emt 0:05:07]} Ne6 {[%emt 0:02:23]} 17. Nf4 {[%emt 0:06:18]} Bd6 {[%emt 0:08:35]} 18. Nxe6 {[%emt 0:00:09]} fxe6 {[%emt 0:00:01]} 19. Qh5+ {[%emt 0:00:08]} g6 {[%emt 0:00:31]} 20. Qb5 {[%emt 0:00:33]} c6 {[%emt 0:00:00]} 21. Qd3 {[%emt 0:01:05]} Qc7 {[%emt 0:01:06]} 22. Qh3 {[%emt 0:16:43]} O-O-O {[%emt 0:00:44]} 23. Bg5 {[%emt 0:00:13]} Rdf8 {[%emt 0:00:45]} 24. Nb5 {[%emt 0:11:57]} cxb5 {[%emt 0:00:18]} 25. Rac1 {[%emt 0:00:30]} Bc5 {[%emt 0:00:20]} 26. b4 {[%emt 0:03:40]} Qc6+ {[%emt 0:02:54]} 27. f3 {[%emt 0:00:03]} Rf5 {[%emt 0:01:16]} 28. Rxc5 {[%emt 0:00:12]} Rxc5 {[%emt 0:00:15]} 29. bxc5 {[%emt 0:00:02]} Qd5 {[%emt 0:01:48]} 30. Bf4 {[%emt 0:02:45]} g5 {[%emt 0:03:30]} 31. Bd6 {[%emt 0:01:48]} h5 {[%emt 0:04:01]} 32. Kg1 {[%emt 0:01:54]} Qxa2 {[%emt 0:03:40]} 33. Be5 {[%emt 0:00:37]} Rh7 {[%emt 0:01:18]} 34. Qg3 {[%emt 0:01:00]} Qd2 {[%emt 0:01:08]} 35. f4 {[%emt 0:01:08]} g4 {[%emt 0:00:05]} 36. Qb3 {[%emt 0:02:16]} Rd7 {[%emt 0:00:24]} 37. Bd6 {[%emt 0:04:27]} Qd4+ {[%emt 0:00:44]} 38. Rf2 {[%emt 0:00:28]} Qa1+ {[%emt 0:00:53]} 39. Kg2 {[%emt 0:00:09]} h4 {[%emt 0:00:13]} 40. Ra2 {[%emt 0:02:13]} h3+ {[%emt 0:00:34]} 41. Kf2 {[%emt 0:03:59]} Qh1 {[%emt 0:16:03]} 42. Qg3 {[%emt 0:01:06]} a6 {[%emt 0:01:30]} 43. Re2 {[%emt 0:00:22]} b4 {[%emt 0:05:42]} 44. Rxe6 {[%emt 0:09:36]} Rg7 {[%emt 0:03:04]} 45. f5 {[%emt 0:04:02]} Qd5 {[%emt 0:01:53]} 46. Re5 {[%emt 0:03:54]} Qd4+ {[%emt 0:01:56]} 47. Kf1 {[%emt 0:03:00]} Qd1+ {[%emt 0:01:05]} 48. Re1 {[%emt 0:00:29]} Qd5 {[%emt 0:00:04]} 49. f6 {[%emt 0:02:11]} Rg5 {[%emt 0:02:08]} 50. Kg1 {[%emt 0:00:05]} b3 {[%emt 0:02:23]} 51. Rf1 {[%emt 0:06:04]} Rf5 {[%emt 0:01:18]} 52. Qxg4 {[%emt 0:00:27]} Qg2+ {[%emt 0:00:07]} 53. Qxg2 {[%emt 0:00:02]} hxg2 {[%emt 0:00:04]} 54. Rb1 {[%emt 0:01:15]} Rxf6 {[%emt 0:02:00]} 55. Rxb3 {[%emt 0:00:31]} b5 {[%emt 0:00:05]} 56. Re3 {[%emt 0:00:22]} Kd7 {[%emt 0:00:35]} 57. Re7+ {[%emt 0:00:00]} Kc6 {[%emt 0:00:00]} 58. Ra7 {[%emt 0:00:09]} Rf1+ {[%emt 0:01:15]} 59. Kxg2 {[%emt 0:00:02]} Ra1 {[%emt 0:00:31]} 60. h4 {[%emt 0:00:50]} b4 {[%emt 0:00:00]} 61. Rc7+ {[%emt 0:01:01]} Kd5 {[%emt 0:00:00]} 62. Rb7 {[%emt 0:00:07]} a5 {[%emt 0:01:00]} 63. h5 {[%emt 0:00:01]} Re1 {[%emt 0:00:06]} 64. h6 {[%emt 0:00:22]} Re6 {[%emt 0:00:01]} 65. h7 {[%emt 0:01:45]} Rh6 {[%emt 0:00:01]} 66. Bf4 {[%emt 0:00:41]} Rh5 {[%emt 0:00:06]} 67. Be3 {[%emt 0:00:35]} b3 {[%emt 0:01:26]} 68. Rxb3 {[%emt 0:00:56]} Rxh7 {[%emt 0:00:01]} 69. Kf3 {[%emt 0:00:13]} Rf7+ {[%emt 0:00:50]} 70. Ke2 {[%emt 0:00:01]} Kc4 {[%emt 0:00:15]} 71. Rb6 {[%emt 0:00:47]} a4 {[%emt 0:00:06]} 72. c6 {[%emt 0:00:57]} a3 {[%emt 0:01:05]} 73. Ra6 {[%emt 0:00:34]} Kb5 {[%emt 0:00:10]} 74. Rxa3 {[%emt 0:00:01]} Kxc6 {[%emt 0:00:04]} 75. Kd3 {[%emt 0:00:04]} Rh7 {[%emt 0:00:37]} 76. Kc4 {[%emt 0:00:07]} Kd6 {[%emt 0:00:03]} 77. Bd4 {[%emt 0:00:03]} Ke6 {[%emt 0:00:13]} 78. Rf3 {[%emt 0:00:06]} Rf7 {[%emt 0:00:18]} 79. Rh3 {[%emt 0:00:03]} Rf1 {[%emt 0:00:23]} 80. Rh6+ {[%emt 0:00:07]} Kf7 {[%emt 0:00:16]} 81. Kd5 {[%emt 0:00:31]} Ke7 {[%emt 0:01:13]} 82. Rh7+ {[%emt 0:00:00]} Rf7 {[%emt 0:00:05]} 83. Rh1 {[%emt 0:00:20]} Rf5+ {[%emt 0:00:37]} 84. Be5 {[%emt 0:00:30]} Rf2 {[%emt 0:00:11]} 85. Rh7+ {[%emt 0:00:10]} Rf7 {[%emt 0:00:03]} 86. Rh8 {[%emt 0:00:02]} Rf2 {[%emt 0:00:10]} 87. Bd6+ {[%emt 0:00:07]} Kd7 {[%emt 0:00:06]} 88. Rh7+ {[%emt 0:00:05]} Kc8 {[%emt 0:03:26]} 89. Kc6 {[%emt 0:00:29]} Rc2+ {[%emt 0:00:04]} 90. Bc5 {[%emt 0:00:08]} Rd2 {[%emt 0:00:04]} 91. Ra7 {[%emt 0:01:45]} Rb2 {[%emt 0:01:06]} 92. Ra1 {[%emt 0:01:41]} Rb3 {[%emt 0:00:29]} 93. Rf1 {[%emt 0:03:05]} Rd3 {[%emt 0:00:29]} 94. Bb4 {[%emt 0:00:14]} Rd4 {[%emt 0:01:04]} 95. Bd6 {[%emt 0:00:26]} Rc4+ {[%emt 0:00:54]} 96. Bc5 {[%emt 0:00:06]} 1-0